Cogmind - Beta 16 --- EXPLORER MODE // 2026.02.09 @ 10:01:10 Player: K.K.Y. Result: Destroyed by G-34 Mercenary with Small Laser Performance ------------- Evolutions (0) 0 Regions Visited (2) 400 Robots Destroyed (47) 235 Value Destroyed (1032) 1032 Prototype IDs (12) 240 Alien Tech Used (0) 0 Bonus (0) 0 TOTAL SCORE: 1907 Bonus ------- None Cogmind --------- Core Integrity 0/250 Matter 136/300 Energy 100/100 System Corruption 0% Temperature Cool (6) Movement Walking (130) Location -10/Subcaves Parts ------- > --- POWER (1) -------- (None) > --- PROPULSION (2) --- Cargo Legs > --- UTILITY (3+2) ---- Heat Sink High-capacity Storage Unit > --- WEAPON (2) ------- Battle Cannon > --- INVENTORY (20) --- Improved Ion Engine Improved Ion Engine Improved Ion Engine Large Storage Unit Structural Scanner Sensor Array Improved Terrain Scanner Medium Armor Plating Medium Armor Plating Medium Armor Plating Medium Armor Plating Beam Rifle Beam Cannon Subdweller Beam Cannon Improved Light Cannon Improved Light Cannon Improved Light Cannon Datajack Mining Laser Multitool Peak State ------------ > --- POWER ------------ Improved Ion Engine > --- PROPULSION ------- Cargo Legs > --- UTILITY ---------- Heat Sink High-capacity Storage Unit > --- WEAPON ----------- Beam Cannon Battle Cannon > --- INVENTORY -------- Improved Ion Engine Improved Ion Engine Improved Ion Engine Large Storage Unit Structural Scanner Sensor Array Improved Terrain Scanner Medium Armor Plating Medium Armor Plating Medium Armor Plating Medium Armor Plating Beam Rifle Beam Cannon Subdweller Beam Cannon Improved Light Cannon Improved Light Cannon Improved Light Cannon Datajack Mining Laser Multitool [Rating: 26] Favorites ----------- Power Improved Ion Engine Engine Improved Ion Engine Propulsion Light Treads Treads Light Treads Leg Cargo Legs Utility Heat Sink Device Heat Sink Storage High-capacity Storage Unit Weapon Beam Cannon Energy Gun Medium Laser Energy Cannon Beam Cannon Ballistic Gun Light Assault Rifle Ballistic Cannon Improved Light Cannon Build | -11 -10 -10 ------- Run | Yrd Mat Sub Slots Evolved 1 | . 1 . Power . | . . . Propulsion . | . . . Utility 1 | . 1 . Weapon . | . . . Parts Attached 17 | 5 8 4 Power 2 | . 2 . Engine 2 | . 2 . Core . | . . . Reactor . | . . . Propulsion 5 | 2 1 2 Treads 4 | 2 1 1 Leg 1 | . . 1 Wheel . | . . . Hover . | . . . Flight . | . . . Utility 3 | . 3 . Device 1 | . 1 . Storage 2 | . 2 . Processor . | . . . Hackware . | . . . Protection . | . . . Artifact . | . . . Weapon 7 | 3 2 2 Energy Gun 2 | 2 . . Energy Cannon 2 | . 2 . Ballistic Gun 1 | 1 . . Ballistic Cannon 2 | . . 2 Launcher . | . . . Special Weapon . | . . . Impact Weapon . | . . . Slashing Weapon . | . . . Piercing Weapon . | . . . Special Melee Weapon . | . . . Unidentified Prototypes . | . . . Parts Lost 3 | . 1 2 Power 1 | . . 1 Propulsion 1 | . 1 . Utility . | . . . Weapon 1 | . . 1 Highest Loss Streak 1 | . 1 1 To Critical Strikes . | . . . Average Backups 16 | 3 11 19 Power 2 | . . 3 Propulsion . | . . . Utility 7 | 1 6 8 Weapon 5 | . 3 6 Tool/Special . | . . . Unused Backups 20 | 1 1 18 Power 3 | . . 3 Propulsion . | . . . Utility 8 | . 1 7 Weapon 7 | 1 . 6 Tool/Special 2 | . . 2 Average Slot Usage (%) 78 | . 76 79 Engine 11 | . 10 11 Treads 18 | . 20 16 Device 11 | . 9 11 Storage 11 | . 9 11 Energy Gun 2 | . 8 . Energy Cannon 13 | . 16 12 Ballistic Cannon 7 | . . 10 Peak Build Rating 26 | 4 10 26 Average Rating 10 | 3 7 12 On Entrance 4 | . 4 10 Avg Prop Armor Cover (%) . | . . . Naked Turns . | . . . Heaviest Build 55 | 4 54 55 Greatest Support 55 | 40 40 55 Greatest Overweight (x) 2 | . 2 2 Average Overweight (x) . | . . 1 Largest Inventory Capacity 20 | 5 20 20 Average Capacity 17 | 5 14 20 Most Carried 20 | 5 17 20 Average Carried 16 | 3 11 19 Final Capacity 20 | 5 20 20 Final Carried 20 | 4 17 20 Class Distribution -------------------- 100% | Hacker-Mutant Dominant Class ---------------- Hacker-Mutant | -10/Materials Hacker-Mutant | -10/Subcaves Resources | -11 -10 -10 ----------- Run | Yrd Mat Sub Matter Collected 639 | 250 105 284 Remotely . | . . . Salvage Created 1345 | 258 650 437 Parts 76 | 17 39 20 Haulers Intercepted 2 | . 2 . Recyclers Shooed 1 | 1 . . Parts Field Recycled . | . . . Retrieved Matter . | . . . Parts Self-Destructed . | . . . Prevented . | . . . Parts Restored . | . . . Kills | -11 -10 -10 ------- Run | Yrd Mat Sub Combat Hostiles Destroyed 27 | . 13 14 Guns 7 | . 7 . Cannons 18 | . 5 13 Classes Destroyed 12 | 3 6 3 Worker 2 | 1 1 . Builder 2 | . 2 . Tunneler 8 | 8 . . Hauler 2 | . 2 . Recycler 1 | 1 . . Mechanic 1 | . 1 . Turret 2 | . . 2 Watcher 2 | . 2 . Swarmer 8 | . 6 2 Grunt 10 | . 7 3 Artisan 1 | . . 1 Subdweller 9 | . . 9 Best Kill Streak 7 | 4 7 3 Combat Bots Only 3 | . 2 3 Max Kills in Single Turn 2 | 2 1 1 Gunslinging . | . . . Exploded . | . . . Melee . | . . . Uniques/NPCs Destroyed . | . . . Combat | -11 -10 -10 -------- Run | Yrd Mat Sub Hostile Shots Fired 177 | . 53 124 Missed 59 | . 15 44 Hits 118 | . 38 80 Projectile 118 | . 38 80 AOE 1 | . . 1 Damage Taken 1025 | 24 278 723 Core 252 | . 57 195 Absorbed by Shields . | . . . Ignored by Resistances 655 | 13 184 458 Core Remaining (%) 100 | 100 . . Volleys Fired 152 | 14 46 92 Largest 2 | 2 2 2 Hottest 120 | 90 120 93 Shots Fired 272 | 28 85 159 Gun 89 | 28 61 . Cannon 183 | . 24 159 Launcher . | . . . Special . | . . . Kinetic 92 | . . 92 Thermal 136 | 14 55 67 Explosive . | . . . Electromagnetic 44 | 14 30 . Robot Hit Streak 24 | 19 24 24 Robot Miss Streak 2 | 1 2 2 Penetration Max . | . . . Secondary Targets . | . . . Shots Hit Robots 158 | 22 63 73 Core Hits 63 | 11 25 27 Critical Kills 1 | . . 1 Critical Parts Destroyed . | . . . Critical Strikes 9 | 1 4 4 Burn 4 | 1 3 . Meltdown 1 | . . 1 Blast 3 | . . 3 Corrupt 1 | . 1 . Melee Attacks . | . . . Impact . | . . . Slashing . | . . . Piercing . | . . . Sneak Attacks . | . . . Combat Hostiles . | . . . Follow-up Attacks . | . . . Damage Inflicted 2747 | 332 988 1427 Guns 961 | 308 653 . Cannons 1655 | . 228 1427 Explosions 119 | 24 95 . Melee . | . . . Ramming 12 | . 12 . Kinetic 954 | . . 954 Thermal 1251 | 173 605 473 Explosive . | . . . Electromagnetic 530 | 159 371 . Impact . | . . . Slashing . | . . . Piercing . | . . . Highest Corruption . | . . . Average Corruption . | . . . Corruption Purged . | . . . Corruption Blocked . | . . . Overload Shots . | . . . Overflow Damage 22 | . . 22 Projectiles 22 | . . 22 Explosions . | . . . Melee . | . . . Knockbacks 12 | . . 12 Impact . | . . . Kinetic 12 | . . 12 Secondary . | . . . Self-Inflicted Damage 43 | 24 19 . Shots 2 | 1 1 . Rammed 2 | . 2 . Targets Rammed 2 | . 2 . Kicked . | . . . Crushed . | . . . Highest Temperature 354 | 60 354 12 Average Temperature 73 | 19 89 8 Received Heat Transfer 594 | . 144 450 Effects 2 | . 2 . Interference 2 | . 2 . Siege Activations . | . . . Martial Activations . | . . . Shielding Activations . | . . . Robots Disrupted . | . . . Combat Hostiles . | . . . Robots Corrupted 1 | . 1 . Combat Hostiles 1 | . 1 . Parts Fried 1 | . 1 . Impact Corruptions . | . . . Robots Melted 1 | . . 1 Combat Hostiles 1 | . . 1 Parts Melted 6 | 2 1 3 Heat Transferred 3271 | 568 1704 999 Parts Sabotaged . | . . . Parts Stolen . | . . . Parts Stripped . | . . . Power Chain Reactions 3 | 1 2 . Alert | -11 -10 -10 ------- Run | Yrd Mat Sub Maximum Alert Level . | . . . Low Security (%) 100 | 100 100 . Level 1 . | . . . Level 2 . | . . . Level 3 . | . . . Level 4 . | . . . Level 5 . | . . . High Security . | . . . Max Security . | . . . Peak Influence 54 | 15 54 . Initial . | . . . Average 6 | 1 7 . Influence Increases 663 | 50 408 205 Destroy 0b10 Robot/C 400 | . 260 140 Destroy 0b10 Robot/NC 90 | 50 40 . Destroy Leader 88 | . 68 20 Successful Hack 11 | . 11 . Disable Machine 12 | . 12 . Destroy Structure 2 | . 2 . Lose Combat Pursuer 60 | . 15 45 Influence Decreases 598 | 50 408 140 Time Decay 578 | 50 408 120 Lost Part 20 | . . 20 Squads Dispatched 2 | . 2 . Investigation 2 | . 2 . Extermination . | . . . Reinforcement . | . . . Assault . | . . . Garrison . | . . . Intercept . | . . . Searches Triggered . | . . . Construction Impeded . | . . . Haulers Reinforced . | . . . Active Scanning Responses . | . . . Cargo Convoy Interrupts . | . . . Stealth | -11 -10 -10 --------- Run | Yrd Mat Sub Distress Signals . | . . . Communications Jammed . | . . . Distress Signals . | . . . Times Spotted 41 | . 18 23 Peak Tracking Total 3 | . 3 2 Tactical Retreats 5 | . 1 4 Traps | -11 -10 -10 ------- Run | Yrd Mat Sub Traps Triggered 3 | . 2 1 Indirectly . | . . . Trap Hack Attempts . | . . . Triggered . | . . . Disarmed . | . . . Reprogrammed . | . . . Reused . | . . . Traps Extracted . | . . . Installed . | . . . Triggered . | . . . Machines | -11 -10 -10 ---------- Run | Yrd Mat Sub Machines Disabled 6 | . 3 3 Max in Single Turn 1 | . 1 1 Machines Repaired . | . . . Machines Dismantled . | . . . Machines Sabotaged . | . . . Overloaded Fab Kills . | . . . Hacking | -11 -10 -10 --------- Run | Yrd Mat Sub Machines Accessed 11 | . 9 2 Terminals 7 | . 7 . Fabricators . | . . . Repair Stations . | . . . Recycling Units 2 | . 2 . Scanalyzers . | . . . Garrison Access . | . . . Total Hacks 22 | . 18 4 Successful 16 | . 12 4 Failed 6 | . 6 . Catastrophic . | . . . Database Lockouts . | . . . Manual 16 | . 16 . Terminals 16 | . 16 . Fabricators . | . . . Repair Stations . | . . . Recycling Units 2 | . 2 . Scanalyzers . | . . . Garrison Access . | . . . Terminal Hacks 7 | . 3 4 Record 3 | . . 3 Robot Schematic 3 | . 3 . Proto ID Catalog 1 | . . 1 Fabricator Hacks . | . . . Repair Station Hacks . | . . . Recycling Unit Hacks 2 | . 2 . Retrieve Components 2 | . 2 . Scanalyzer . | . . . Garrison Access Hacks . | . . . Unauthorized Hacks 7 | . 7 . Terminals 7 | . 7 . Botnet 7 | . 7 . Fabricators . | . . . Repair Stations . | . . . Recycling Units . | . . . Scanalyzers . | . . . Garrison Access . | . . . Data Cores Recovered . | . . . Used . | . . . Hacking Detections 4 | . 4 . Full Trace Events 3 | . 3 . Feedback Events . | . . . Feedback Blocked . | . . . Robot Schematics Acquired 3 | . 3 . Robots Built . | . . . Authchips . | . . . Time . | . . . Total Robot Build Rating . | . . . Part Schematics Acquired . | . . . Parts Built . | . . . Authchips . | . . . Time . | . . . Total Part Build Rating . | . . . Part Studies Acquired . | . . . Parts Repaired . | . . . Time . | . . . Parts Recycled . | . . . Recycled Matter . | . . . Retrieved Matter . | . . . Retrieved Components 11 | . 11 . Parts Scanalyzed . | . . . Part Schematics Acquired . | . . . Parts Damaged . | . . . Bothacking | -11 -10 -10 ------------ Run | Yrd Mat Sub Used RIF Installer . | . . . Robots Hacked . | . . . Non-combat . | . . . Combat . | . . . Robot Hacks Applied . | . . . Relay Couplers Released . | . . . Fabnet Peak Effective % . | . . . Robots Rewired . | . . . Allies Hacked . | . . . Hacks Repelled . | . . . Allies | -11 -10 -10 -------- Run | Yrd Mat Sub Total Allies . | . . . Largest Group . | . . . Highest-Rated Group . | . . . Highest-Rated Ally . | . . . Total Orders . | . . . Ally Attacks . | . . . Total Damage . | . . . Kills . | . . . Allies Corrupted . | . . . Allies Melted . | . . . Intel | -11 -10 -10 ------- Run | Yrd Mat Sub Active Infowar (turns) . | . . . Robot Analysis Total . | . . . Derelict Logs Recovered . | . . . Drone Launches . | . . . Drone Recoveries . | . . . Exploration | -11 -10 -10 ------------- Run | Yrd Mat Sub Turns Passed 5902 | 286 1725 3891 Spaces Moved 2108 | 149 814 1145 Core 16 | 16 . . Treads 1992 | 133 814 1045 Legs 100 | . . 100 Wheels . | . . . Hover . | . . . Flight . | . . . Fastest Speed 50 | 50 160 130 Average Speed 223 | 148 188 258 Slowest Speed 320 | 160 320 320 Overloaded Moves . | . . . Propulsion Burnouts . | . . . Robots Hopped . | . . . Potential Cave-ins . | . . . Cave-ins Triggered . | . . . Exploration Rate (%) 54 | 5 99 59 Regions Visited 2 Branch Regions 1 Pre-discovered Areas . | . . . Known Exits Taken 2 | 1 1 . Unknown Exits Taken . | . . . Scrap Searched 5 | . . 5 Spaces Dug 2 | . . 2 Terrain Destroyed 9 | 5 2 2 Melee . | . . . Projectile 2 | . . 2 AOE 7 | 5 2 . Terrain Rammed . | . . . Walls Destroyed . | . . . Machines Disabled . | . . . Actions | -11 -10 -10 --------- Run | Yrd Mat Sub Total 3032 | 187 924 1921 Wait 705 | 8 23 674 Move 2106 | 148 813 1145 Hop . | . . . Pick Up 35 | 10 22 3 Fast Attach 3 | . 1 2 Attach 9 | 4 5 . Detach 1 | . 1 . Swap 8 | 1 5 2 Drop 11 | 2 6 3 Fire 152 | 14 46 92 Melee . | . . . Ram . | . . . Kick . | . . . Crush 2 | . 2 . Escape Stasis . | . . . Rewire . | . . . Trap . | . . . Miscellaneous . | . . . Route ------- -11/Scrapyard -10/Materials (discovered 6 exits: *Mat x3 / *Min x2 / *Sub) -10/Subcaves (discovered 2 exits: *Mat / *Rec) History --------- Turn | Location | Event 10 | -11/Scrapyard | Identified exit to Materials 10 | -11/Scrapyard | Discovered exit to Materials (range 13) 287 | -11/Scrapyard | Entered Materials 287 | -10/Materials | Evolved 1 slot: Utility x1 307 | -10/Materials | Build established: Hacker-Mutant 495 | -10/Materials | Identified exit to Mines 495 | -10/Materials | Discovered exit to Mines (range 8) 872 | -10/Materials | Identified exit to Materials 872 | -10/Materials | Discovered exit to Materials (range 16) 1045 | -10/Materials | Discovered exit to Mines (range 8) 1105 | -10/Materials | Discovered exit to Materials (range 16) 1339 | -10/Materials | Discovered exit to Materials (range 16) 1990 | -10/Materials | Identified exit to Subcaves 1990 | -10/Materials | Discovered exit to Subcaves (range 7) 2012 | -10/Materials | Entered Subcaves 2622 | -10/Subcaves | Core integrity fell below 50% 4131 | -10/Subcaves | Ambushed by Subdwellers from Twisted Machinery 4752 | -10/Subcaves | Visited Clippyterm 4759 | -10/Subcaves | Learned Research security intel 5074 | -10/Subcaves | Identified exit to Materials 5074 | -10/Subcaves | Discovered exit to Materials (range 8) 5109 | -10/Subcaves | A swath of the cavern ceiling suddenly collapsed 5666 | -10/Subcaves | Visited 4L-MR0's lab 5697 | -10/Subcaves | Found Cargo Legs 5698 | -10/Subcaves | Attached Cargo Legs, gained temporary slots: Utility x2 5759 | -10/Subcaves | Identified exit to Recycling 5759 | -10/Subcaves | Discovered exit to Recycling (range 11) 5768 | -10/Subcaves | Core integrity fell below 20% 5842 | -10/Subcaves | A swath of the cavern ceiling suddenly collapsed 5903 | -10/Subcaves | Destroyed by G-34 Mercenary with Small Laser Last Messages --------------- 05811_ Acquired 2 matter. 05814_ Acquired 3 matter. 05819_ Acquired 9 matter. 05820_ Acquired 3 matter. 05821_ Subatomizers dissect the Flight Unit. 05824_ Acquired 5 matter. 05832_ Acquired 29 matter. 05833_ Subatomizers dissect the Flight Unit. 05836_ Acquired 5 matter. A swath of the cavern ceiling suddenly collapses. 05874_ G-34 Mercenary destroyed. 05878_ G-47 Trooper Imp. Heat Sink blasted off. 05878_ G-47 Trooper knocked back. 05888_ Destroyed Aluminum Leg. 05888_ G-47 Trooper destroyed. 05895_ Imp. Ion Engine destroyed. 05901_ G-47 Trooper suffers critical hit (Blast). 05901_ G-47 Trooper destroyed. Map ----- +----------------------------------------------------+ | ???????????????????????###???## #?#" """## "### | | ?????????????????????????????#= #### "## " ### | | ?????????????????????????????#%=##"# "### # | | ?????????????????????????????# = & "###" " | | ??????????????????????????##### & ># " | | ????????????????????????### ## = "## # | | ????????????????????????# #### "### ### | | ????????????????????????## # ##??# "#?# #?? | | ?????????????????????????#" ####???#" """#?# ##? | | ?????????????????????????#"""################ #? | | ????????????????????????##""#""""""#?????### #? | | ????????????????????????#"""""""#"#??????# ##? | | ????????????????????????###""#### #????### # ### | | ?????????????????????????#""#"##?? #??### ## | | ????????????????????????##""##"#???#??# | | ????????????????????????#"""#""#??????# | | ????????????????????????#""""# "? ####### | | ???????????????????????### ### "# #?????# | | ???????????????????????#"#""# ### ### ##?????## | | ????????????????????????#" ### #??#???###????????# | | ????????????????????????## ##?##?????????????????# | | ????????????????????????##;;#???????????#####????# | | ???????????????????????### "##??? #?????#"" #????# | | ???????????????????????# # # ## #?????# " #????# | | ???????????????????????# # #????## " #???## | | ???????????????????????# @ ##??### " #?##" | | ????????????????#%[=%& ##??##""""" ### | | ????????????? %g=%%*% ##??## """ ## | | ???????????? !%%%!##& ##??##"" """ | | ??????????? %#???# &%#??##"" | | ???????????? ?????# #? """" | | ???????????????????#### """""" ### | | ??????????????????????## % "" ####" #### | | ???????????????????????### ""????#"" ### | | ?????????????????????????# ### "????##""" | | ?????????????????????????# #??# ?????###""" | | ????????????????????????? ??? ??????# "## | | ????????????????????????? ???? ?????# ### | | ????????????????????????? #?????????# #?## | | ????????????????????????? ??????????## #??## | | ????????????????????????? ##????????????## #??## | | ???????????????????????????????????????????# #??# | | ???????????????????????????????????????#######??# | | ??????????????????????????????????????## ##????## | | ??????????????????????????????????##### #?????? | | ????????????????????????????????### #?????? | | ????????????????????????????????# ##????# | | ????????????????????????????????# ###### | | ????????#??????????????????????## | | ????????# ???????????###???##### | +----------------------------------------------------+ Best States ------------- Heat Dissipation 35 Energy Generation 12 Energy Capacity 265 Matter Stores 300 Matter Capacity 300 Sight Range 16 Terrain Scan Density 10 Resistance: KI 35 Resistance: TH 35 Resistance: EX 35 Resistance: EM 35 Resistance: I 35 Resistance: S 35 Resistance: P 35 Evasion (%) 55 Recoil Reduction 2 Offensive Hacking 20 Item Schematics ----------------- None Robot Schematics ------------------ W-16 Scout | -10/Materials | Hacked M-13 Machinist | -10/Materials | Hacked G-34 Mercenary | -10/Materials | Hacked Fabricated ------------ Nothing Repaired ---------- Nothing Studied --------- None Alien Tech Used ----------------- None Achievements -------------- None Challenges ------------ None Game ------ Seed ChromaticIntegratedInsulator Manual? 0 Play Time 00:20:29 Cumulative 325.6 hours Start 2026.02.09 @ 09:44:00 End 2026.02.09 @ 10:01:10 Sessions 1 Manual Loads 0 Difficulty Explorer Special Mode None Game No. 513 Rogue 0 Adventurer 0 Explorer 513 Win Type - Total 0 Types 0/0/0/0/0/0/0/0/0/0 Lore% 77 Gallery% 70 Achievement% 56 Wizard Run 0 Options --------- Layout 1 ASCII 0 Keyboard 0 Movement Mouse Keybinds 1 Fullscreen 1 Font 24/Smallcaps Map View 50x35 Zoom Use 0% Tactical HUD 1 Map Filters NONE Filters NONE Steam 1 RUN: 125b0e77-6f43-4a05-b667-177ca510bdd1